[Event "*** Titled Tuesday Blitz"]
[Site "Chess.com"]
[Date "2019.12.03"]
[Round "10"]
[White "kleopl"]
[Black "Region_07"]
[Result "1-0"]
[WhiteElo "2489"]
[BlackElo "2382"]
[TimeControl "180+2"]
[EndTime "15:19:19 PST"]
[Termination "kleopl won by resignation"]

1. c4 {[%clk 0:03:01.9]} 1... f5 {[%clk 0:02:58.5]} 2. Nc3 {[%clk 0:03:02]} 2...
Nf6 {[%clk 0:02:59.6]} 3. d4 {[%clk 0:03:03.1]} 3... d6 {[%clk 0:02:58.3]} 4. g3
{[%clk 0:03:02.5]} 4... g6 {[%clk 0:02:58.8]} 5. Bg2 {[%clk 0:03:03.9]} 5... Bg7
{[%clk 0:03:00.4]} 6. Nf3 {[%clk 0:03:05.6]} 6... O-O {[%clk 0:03:01.5]} 7. O-O
{[%clk 0:03:07.2]} 7... c6 {[%clk 0:03:01.9]} 8. Qc2 {[%clk 0:03:03.9]} 8... Na6
{[%clk 0:03:00.1]} 9. a3 {[%clk 0:03:04]} 9... Qc7 {[%clk 0:02:59.7]} 10. b4
{[%clk 0:03:04.7]} 10... e5 {[%clk 0:03:00.4]} 11. Bb2 {[%clk 0:03:03]} 11...
Qe7 {[%clk 0:02:52]} 12. dxe5 {[%clk 0:03:01.6]} 12... dxe5 {[%clk 0:02:52.6]}
13. e4 {[%clk 0:03:00.4]} 13... Nc7 {[%clk 0:02:35.5]} 14. Rfe1 {[%clk 0:02:45]}
14... fxe4 {[%clk 0:01:54.5]} 15. Nxe4 {[%clk 0:02:44.4]} 15... Nxe4 {[%clk
0:01:55.7]} 16. Qxe4 {[%clk 0:02:44.2]} 16... Bf5 {[%clk 0:01:57.2]} 17. Qe2
{[%clk 0:02:43.2]} 17... Rae8 {[%clk 0:01:56.8]} 18. Bxe5 {[%clk 0:02:35.6]}
18... Bg4 {[%clk 0:01:53.4]} 19. Bxg7 {[%clk 0:02:32.9]} 19... Qxg7 {[%clk
0:01:37.7]} 20. Qd3 {[%clk 0:02:30.7]} 20... Bf5 {[%clk 0:01:30.3]} 21. Qd4
{[%clk 0:02:26.9]} 21... Qxd4 {[%clk 0:01:23.6]} 22. Nxd4 {[%clk 0:02:28.8]}
22... Bd3 {[%clk 0:01:19.8]} 23. c5 {[%clk 0:02:29.2]} 23... Bc4 {[%clk
0:01:18]} 24. Bh3 {[%clk 0:02:23]} 24... Kg7 {[%clk 0:01:15]} 25. Rad1 {[%clk
0:02:21.2]} 25... Bd5 {[%clk 0:01:07.1]} 26. f4 {[%clk 0:02:10.7]} 26... h5
{[%clk 0:00:56.6]} 27. Re5 {[%clk 0:02:06.6]} 27... Rxe5 {[%clk 0:00:55.2]} 28.
fxe5 {[%clk 0:02:08.5]} 28... Re8 {[%clk 0:00:56.6]} 29. Re1 {[%clk 0:02:07.7]}
29... Ne6 {[%clk 0:00:49.5]} 30. Nxe6+ {[%clk 0:02:06.9]} 30... Bxe6 {[%clk
0:00:51.4]} 31. Bxe6 {[%clk 0:02:07.6]} 31... Rxe6 {[%clk 0:00:53.3]} 32. Kf2
{[%clk 0:02:08.9]} 32... Re8 {[%clk 0:00:47.5]} 33. Kf3 {[%clk 0:02:06.9]} 33...
Rd8 {[%clk 0:00:39.4]} 34. Ke4 {[%clk 0:02:07]} 34... Rd2 {[%clk 0:00:33.1]} 35.
h4 {[%clk 0:02:04.7]} 35... Kf7 {[%clk 0:00:25.1]} 36. Kf4 {[%clk 0:02:01.8]}
36... Ke6 {[%clk 0:00:25.8]} 37. Re3 {[%clk 0:02:01.3]} 37... Rd4+ {[%clk
0:00:24.7]} 38. Kg5 {[%clk 0:02:01.1]} 38... Rg4+ {[%clk 0:00:25.2]} 39. Kh6
{[%clk 0:02:02.4]} 39... a6 {[%clk 0:00:15.7]} 40. a4 {[%clk 0:01:56]} 40... Ke7
{[%clk 0:00:14]} 41. e6 {[%clk 0:01:56.6]} 41... Rxb4 {[%clk 0:00:12.8]} 42.
Kxg6 {[%clk 0:01:57.8]} 42... Rxa4 {[%clk 0:00:13.2]} 43. Kxh5 {[%clk
0:01:59.1]} 43... Rc4 {[%clk 0:00:14.4]} 44. Re5 {[%clk 0:01:59.4]} 44... a5
{[%clk 0:00:15.5]} 45. g4 {[%clk 0:02:00.7]} 45... a4 {[%clk 0:00:16.8]} 46. g5
{[%clk 0:01:59.3]} 46... a3 {[%clk 0:00:17.8]} 47. Re2 {[%clk 0:01:57.3]} 47...
Ra4 {[%clk 0:00:14.4]} 48. Ra2 {[%clk 0:01:41.9]} 48... Kxe6 {[%clk 0:00:15.5]}
49. Kg6 {[%clk 0:01:42.9]} 49... Kd5 {[%clk 0:00:13.4]} 50. h5 {[%clk
0:01:43.7]} 50... Kxc5 {[%clk 0:00:14.5]} 51. h6 {[%clk 0:01:44.1]} 51... Kb4
{[%clk 0:00:15.8]} 52. h7 {[%clk 0:01:42.6]} 52... Ra8 {[%clk 0:00:16.5]} 53.
Kh6 {[%clk 0:01:42.5]} 53... Kb3 {[%clk 0:00:17.7]} 54. Ra1 {[%clk 0:01:41.5]}
54... Kb2 {[%clk 0:00:16.8]} 55. Rg1 {[%clk 0:01:40.9]} 55... a2 {[%clk
0:00:17.5]} 56. g6 {[%clk 0:01:41.7]} 56... b5 {[%clk 0:00:18.1]} 57. g7 {[%clk
0:01:41.8]} 57... a1=Q {[%clk 0:00:16.6]} 58. Rxa1 {[%clk 0:01:42.1]} 58... Kxa1
{[%clk 0:00:18.5]} 59. h8=Q {[%clk 0:01:42.1]} 59... Rxh8+ {[%clk 0:00:18.7]}
60. gxh8=Q+ {[%clk 0:01:42.9]} 60... Ka2 {[%clk 0:00:18.7]} 61. Qd4 {[%clk
0:01:41.9]} 1-0

[Event "*** Titled Tuesday Blitz"]
[Site "Chess.com"]
[Date "2019.12.03"]
[Round "10"]
[White "Korchmar_Vasiliy"]
[Black "kuli4ik"]
[Result "0-1"]
[WhiteElo "2759"]
[BlackElo "2826"]
[TimeControl "180+2"]
[EndTime "15:19:28 PST"]
[Termination "kuli4ik won on time"]

1. d4 {[%clk 0:03:01.5]} 1... g6 {[%clk 0:02:48.5]} 2. e4 {[%clk 0:03:02]} 2...
Bg7 {[%clk 0:02:50.4]} 3. Nc3 {[%clk 0:03:03.3]} 3... a6 {[%clk 0:02:50.3]} 4.
f4 {[%clk 0:03:03.3]} 4... b5 {[%clk 0:02:51.3]} 5. Nf3 {[%clk 0:03:04.2]} 5...
Bb7 {[%clk 0:02:52.4]} 6. Bd3 {[%clk 0:03:05.3]} 6... d6 {[%clk 0:02:53.6]} 7.
a4 {[%clk 0:03:02]} 7... b4 {[%clk 0:02:53.9]} 8. Ne2 {[%clk 0:03:03.2]} 8...
Nd7 {[%clk 0:02:53.6]} 9. a5 {[%clk 0:03:00.1]} 9... c5 {[%clk 0:02:54.4]} 10.
c3 {[%clk 0:03:00.5]} 10... Ngf6 {[%clk 0:02:52.9]} 11. e5 {[%clk 0:03:01.5]}
11... Nd5 {[%clk 0:02:46.3]} 12. O-O {[%clk 0:02:54.2]} 12... O-O {[%clk
0:02:45.8]} 13. Bd2 {[%clk 0:02:54]} 13... bxc3 {[%clk 0:02:45.7]} 14. bxc3
{[%clk 0:02:55.5]} 14... cxd4 {[%clk 0:02:47.6]} 15. cxd4 {[%clk 0:02:56.7]}
15... dxe5 {[%clk 0:02:48.8]} 16. fxe5 {[%clk 0:02:58.6]} 16... Nc7 {[%clk
0:02:45.4]} 17. Nf4 {[%clk 0:02:10.1]} 17... Nd5 {[%clk 0:02:36.1]} 18. Nxd5
{[%clk 0:02:05.5]} 18... Bxd5 {[%clk 0:02:36.4]} 19. Qe2 {[%clk 0:02:00]} 19...
Nb8 {[%clk 0:02:36.8]} 20. Ng5 {[%clk 0:01:13.9]} 20... Nc6 {[%clk 0:02:34.7]}
21. Qg4 {[%clk 0:01:15.1]} 21... h6 {[%clk 0:02:30.1]} 22. Nh3 {[%clk 0:01:04]}
22... Be6 {[%clk 0:02:29.6]} 23. Qh4 {[%clk 0:00:44.3]} 23... Qxd4+ {[%clk
0:02:20.5]} 24. Qxd4 {[%clk 0:00:45.1]} 24... Nxd4 {[%clk 0:02:22.4]} 25. Nf4
{[%clk 0:00:46.7]} 25... Bf5 {[%clk 0:02:06.4]} 26. Bxf5 {[%clk 0:00:44.6]}
26... Nxf5 {[%clk 0:02:07.2]} 27. Rae1 {[%clk 0:00:27]} 27... Rfd8 {[%clk
0:01:59.4]} 28. Bb4 {[%clk 0:00:24.4]} 28... Rab8 {[%clk 0:01:53.9]} 29. Bc5
{[%clk 0:00:24.3]} 29... e6 {[%clk 0:01:51.4]} 30. Bb6 {[%clk 0:00:24.5]} 30...
Rd2 {[%clk 0:01:50.3]} 31. Rf2 {[%clk 0:00:12.3]} 31... Rxf2 {[%clk 0:01:46.7]}
32. Kxf2 {[%clk 0:00:14.2]} 32... Rc8 {[%clk 0:01:46.7]} 33. Nd3 {[%clk
0:00:14.9]} 33... Bf8 {[%clk 0:01:43.7]} 34. g4 {[%clk 0:00:16.1]} 34... Ne7
{[%clk 0:01:37.2]} 35. Nc5 {[%clk 0:00:14.4]} 35... Nd5 {[%clk 0:01:34.9]} 36.
Nxa6 {[%clk 0:00:13.4]} 36... Rc4 {[%clk 0:01:27.8]} 37. Nb8 {[%clk 0:00:09]}
37... Nxb6 {[%clk 0:01:26.7]} 38. axb6 {[%clk 0:00:09.8]} 38... Bc5+ {[%clk
0:01:28.2]} 39. Kf3 {[%clk 0:00:11.4]} 39... Bxb6 {[%clk 0:01:29.2]} 40. Nd7
{[%clk 0:00:12.7]} 40... Rc3+ {[%clk 0:01:14.9]} 41. Kg2 {[%clk 0:00:12.2]}
41... Rc2+ {[%clk 0:01:14.8]} 42. Kf3 {[%clk 0:00:10.8]} 42... Bd8 {[%clk
0:01:09.5]} 43. Rb1 {[%clk 0:00:09.7]} 43... Bh4 {[%clk 0:01:05.5]} 44. Rb8+
{[%clk 0:00:04.5]} 44... Kg7 {[%clk 0:01:06.4]} 45. Ke4 {[%clk 0:00:04.6]} 45...
Bg5 {[%clk 0:01:02.1]} 46. Rb7 {[%clk 0:00:02.9]} 46... h5 {[%clk 0:00:52.4]}
47. h3 {[%clk 0:00:03.1]} 47... h4 {[%clk 0:00:52.9]} 48. Kf3 {[%clk 0:00:03]}
48... Be7 {[%clk 0:00:47]} 0-1

[Event "*** Titled Tuesday Blitz"]
[Site "Chess.com"]
[Date "2019.12.03"]
[Round "10"]
[White "visa"]
[Black "VeraNebolsina"]
[Result "1-0"]
[WhiteElo "2269"]
[BlackElo "2340"]
[TimeControl "180+2"]
[EndTime "15:19:31 PST"]
[Termination "visa won by resignation"]

1. e4 {[%clk 0:03:01.9]} 1... g6 {[%clk 0:03:00.1]} 2. d4 {[%clk 0:02:57.7]}
2... Bg7 {[%clk 0:02:58.4]} 3. Nc3 {[%clk 0:02:57.2]} 3... d6 {[%clk 0:02:56.5]}
4. h3 {[%clk 0:02:57.2]} 4... a6 {[%clk 0:02:52.6]} 5. a4 {[%clk 0:02:57.5]}
5... Nf6 {[%clk 0:02:46.3]} 6. Be3 {[%clk 0:02:57.4]} 6... Nc6 {[%clk
0:02:35.5]} 7. f4 {[%clk 0:02:54.5]} 7... O-O {[%clk 0:02:31.4]} 8. Nf3 {[%clk
0:02:55.4]} 8... d5 {[%clk 0:02:19.8]} 9. e5 {[%clk 0:02:53.9]} 9... Ne4 {[%clk
0:02:20.1]} 10. Nxe4 {[%clk 0:02:29.8]} 10... dxe4 {[%clk 0:02:20.6]} 11. Ng5
{[%clk 0:02:30.8]} 11... Nb4 {[%clk 0:01:48.9]} 12. Nxe4 {[%clk 0:02:18.7]}
12... Nd5 {[%clk 0:01:49.4]} 13. Qd2 {[%clk 0:02:00.4]} 13... Bf5 {[%clk
0:01:42.7]} 14. Bd3 {[%clk 0:01:45.2]} 14... h5 {[%clk 0:01:09.8]} 15. c4 {[%clk
0:01:35.1]} 15... Nxe3 {[%clk 0:00:45.5]} 16. Qxe3 {[%clk 0:01:36.3]} 16... b6
{[%clk 0:00:45]} 17. O-O {[%clk 0:01:30.6]} 17... Qd7 {[%clk 0:00:45.4]} 18.
Rfd1 {[%clk 0:01:26.3]} 18... Rad8 {[%clk 0:00:43.9]} 19. Be2 {[%clk 0:01:10.7]}
19... f6 {[%clk 0:00:41.6]} 20. b3 {[%clk 0:00:59.4]} 20... fxe5 {[%clk
0:00:39.2]} 21. dxe5 {[%clk 0:01:00.5]} 21... Qe6 {[%clk 0:00:37.9]} 22. Ng5
{[%clk 0:00:55.1]} 22... Qc8 {[%clk 0:00:35.3]} 23. c5 {[%clk 0:00:51.3]} 23...
e6 {[%clk 0:00:21.5]} 24. Bc4 {[%clk 0:00:40.5]} 24... Bh6 {[%clk 0:00:14.4]}
25. h4 {[%clk 0:00:28.9]} 25... Bxg5 {[%clk 0:00:14.8]} 26. hxg5 {[%clk
0:00:29.9]} 26... Bg4 {[%clk 0:00:16]} 27. Rd2 {[%clk 0:00:21.1]} 27... Rxd2
{[%clk 0:00:16.5]} 28. Qxd2 {[%clk 0:00:21.6]} 28... Rd8 {[%clk 0:00:18.4]} 29.
Qe3 {[%clk 0:00:22.3]} 29... Qb7 {[%clk 0:00:18.1]} 30. Re1 {[%clk 0:00:20]}
30... bxc5 {[%clk 0:00:17.7]} 31. Qxc5 {[%clk 0:00:19.8]} 31... Kf7 {[%clk
0:00:17.1]} 32. Qe3 {[%clk 0:00:17]} 32... Qc6 {[%clk 0:00:16.8]} 33. Rc1 {[%clk
0:00:15.3]} 33... Qb7 {[%clk 0:00:17.3]} 34. Qc3 {[%clk 0:00:13.3]} 34... c5
{[%clk 0:00:18.1]} 35. Bf1 {[%clk 0:00:13.5]} 35... Rd4 {[%clk 0:00:18.7]} 36.
Qxc5 {[%clk 0:00:13.6]} 36... Rxf4 {[%clk 0:00:19.5]} 37. Qc7+ {[%clk
0:00:14.6]} 37... Qxc7 {[%clk 0:00:20.3]} 38. Rxc7+ {[%clk 0:00:16.5]} 38... Ke8
{[%clk 0:00:21.9]} 39. Bxa6 {[%clk 0:00:18]} 39... Bd1 {[%clk 0:00:18.9]} 40.
Bc4 {[%clk 0:00:17.9]} 40... Re4 {[%clk 0:00:16.6]} 41. a5 {[%clk 0:00:19]}
41... Rxe5 {[%clk 0:00:17.4]} 42. a6 {[%clk 0:00:20.4]} 42... Ra5 {[%clk
0:00:18.3]} 43. a7 {[%clk 0:00:21.8]} 43... Ra1 {[%clk 0:00:19]} 44. Kh2 {[%clk
0:00:18]} 44... Kd8 {[%clk 0:00:20.2]} 45. Rb7 {[%clk 0:00:17.1]} 45... Kc8
{[%clk 0:00:20.8]} 46. Rb8+ {[%clk 0:00:18.4]} 46... Kc7 {[%clk 0:00:21.6]} 47.
a8=Q {[%clk 0:00:19.7]} 1-0

[Event "*** Titled Tuesday Blitz"]
[Site "Chess.com"]
[Date "2019.12.03"]
[Round "10"]
[White "wnstop"]
[Black "Gabrielian_Artur"]
[Result "0-1"]
[WhiteElo "2677"]
[BlackElo "2795"]
[TimeControl "180+2"]
[EndTime "15:19:53 PST"]
[Termination "Gabrielian_Artur won on time"]

1. e4 {[%clk 0:03:01.9]} 1... c5 {[%clk 0:03:00.6]} 2. Nf3 {[%clk 0:03:03.2]}
2... d6 {[%clk 0:03:02]} 3. d4 {[%clk 0:03:01.7]} 3... cxd4 {[%clk 0:03:03]} 4.
Qxd4 {[%clk 0:03:03.5]} 4... Nc6 {[%clk 0:03:03.6]} 5. Bb5 {[%clk 0:03:03.5]}
5... Bd7 {[%clk 0:03:04.8]} 6. Qd3 {[%clk 0:03:02.5]} 6... Nf6 {[%clk
0:03:03.2]} 7. O-O {[%clk 0:03:02.1]} 7... g6 {[%clk 0:03:04.3]} 8. c4 {[%clk
0:02:58.8]} 8... Bg7 {[%clk 0:03:05.4]} 9. Bxc6 {[%clk 0:02:59.3]} 9... Bxc6
{[%clk 0:03:05.5]} 10. Nc3 {[%clk 0:03:00.7]} 10... O-O {[%clk 0:03:06.1]} 11.
Re1 {[%clk 0:02:51.9]} 11... Nd7 {[%clk 0:03:03.5]} 12. Nd4 {[%clk 0:02:42.2]}
12... Nc5 {[%clk 0:03:03.9]} 13. Qd1 {[%clk 0:02:28.2]} 13... Qb6 {[%clk
0:02:57.4]} 14. Nd5 {[%clk 0:02:13.7]} 14... Bxd5 {[%clk 0:02:57.6]} 15. exd5
{[%clk 0:02:15.6]} 15... Rfe8 {[%clk 0:02:54.4]} 16. Rb1 {[%clk 0:02:11.4]}
16... e5 {[%clk 0:02:54.2]} 17. Nb5 {[%clk 0:02:01.2]} 17... a6 {[%clk
0:02:37.7]} 18. Nc3 {[%clk 0:02:02]} 18... Qb4 {[%clk 0:02:30.2]} 19. Ne4 {[%clk
0:01:30.2]} 19... Nxe4 {[%clk 0:02:27.6]} 20. Rxe4 {[%clk 0:01:32.1]} 20... f5
{[%clk 0:02:27.3]} 21. Bd2 {[%clk 0:01:23.3]} 21... Qc5 {[%clk 0:02:27.4]} 22.
b4 {[%clk 0:01:18]} 22... Qc7 {[%clk 0:02:23.2]} 23. Rh4 {[%clk 0:01:04.4]}
23... e4 {[%clk 0:02:13.4]} 24. Rc1 {[%clk 0:00:51.3]} 24... a5 {[%clk
0:02:03.7]} 25. a3 {[%clk 0:00:38.9]} 25... axb4 {[%clk 0:02:04.3]} 26. axb4
{[%clk 0:00:39.8]} 26... Ra3 {[%clk 0:01:59.6]} 27. c5 {[%clk 0:00:36.5]} 27...
Rd3 {[%clk 0:01:59.7]} 28. Rh3 {[%clk 0:00:34.5]} 28... Rxd5 {[%clk 0:01:49.9]}
29. Qb3 {[%clk 0:00:34.6]} 29... Qf7 {[%clk 0:01:50.9]} 30. Be3 {[%clk
0:00:27.6]} 30... dxc5 {[%clk 0:01:51.6]} 31. bxc5 {[%clk 0:00:26.9]} 31... Red8
{[%clk 0:01:52.3]} 32. Bg5 {[%clk 0:00:16.3]} 32... Rxc5 {[%clk 0:01:31.5]} 33.
Qxf7+ {[%clk 0:00:05.9]} 33... Kxf7 {[%clk 0:01:29.2]} 34. Rb1 {[%clk
0:00:06.3]} 34... Rb5 {[%clk 0:01:17.2]} 35. Rc1 {[%clk 0:00:06.7]} 35... Rh8
{[%clk 0:00:27.3]} 36. Rc7+ {[%clk 0:00:05.5]} 36... Ke6 {[%clk 0:00:28.4]} 37.
g4 {[%clk 0:00:02.7]} 37... Bf6 {[%clk 0:00:14.9]} 38. Bxf6 {[%clk 0:00:03.2]}
38... Kxf6 {[%clk 0:00:15.8]} 39. gxf5 {[%clk 0:00:04.6]} 39... gxf5 {[%clk
0:00:17.2]} 40. Rh6+ {[%clk 0:00:05.9]} 40... Ke5 {[%clk 0:00:18.2]} 41. Re7+
{[%clk 0:00:05.8]} 41... Kd4 {[%clk 0:00:19.5]} 42. Rd6+ {[%clk 0:00:04.6]}
42... Kc4 {[%clk 0:00:18.3]} 43. Rc7+ {[%clk 0:00:05.9]} 43... Kb3 {[%clk
0:00:19.5]} 44. Kg2 {[%clk 0:00:06.6]} 44... Rg8+ {[%clk 0:00:19.6]} 0-1

[Event "*** Titled Tuesday Blitz"]
[Site "Chess.com"]
[Date "2019.12.03"]
[Round "10"]
[White "Bagirova"]
[Black "Glufs"]
[Result "0-1"]
[WhiteElo "2114"]
[BlackElo "2342"]
[TimeControl "180+2"]
[EndTime "15:19:53 PST"]
[Termination "Glufs won by checkmate"]

1. e4 {[%clk 0:02:06.1]} 1... c6 {[%clk 0:03:00.1]} 2. Nf3 {[%clk 0:02:06.5]}
2... d5 {[%clk 0:03:00.8]} 3. Nc3 {[%clk 0:02:07.8]} 3... dxe4 {[%clk
0:03:01.4]} 4. Nxe4 {[%clk 0:02:08.9]} 4... Nf6 {[%clk 0:03:02.5]} 5. Nxf6+
{[%clk 0:02:10.1]} 5... exf6 {[%clk 0:03:03.7]} 6. Bc4 {[%clk 0:02:12]} 6... Bd6
{[%clk 0:03:03.3]} 7. O-O {[%clk 0:02:13.1]} 7... O-O {[%clk 0:03:04]} 8. d4
{[%clk 0:02:15]} 8... Bg4 {[%clk 0:03:03.8]} 9. h3 {[%clk 0:02:16]} 9... Bh5
{[%clk 0:03:04.4]} 10. c3 {[%clk 0:02:17.4]} 10... Nd7 {[%clk 0:03:04.6]} 11. a4
{[%clk 0:02:17.3]} 11... Qc7 {[%clk 0:02:57.9]} 12. a5 {[%clk 0:02:16]} 12... a6
{[%clk 0:02:58]} 13. Bd3 {[%clk 0:02:16.3]} 13... c5 {[%clk 0:02:56.5]} 14. Be3
{[%clk 0:02:12.3]} 14... Rfe8 {[%clk 0:02:48.5]} 15. Rc1 {[%clk 0:02:11.8]}
15... cxd4 {[%clk 0:02:27.8]} 16. cxd4 {[%clk 0:02:10.7]} 16... Qxa5 {[%clk
0:02:28.5]} 17. Qb3 {[%clk 0:02:10.6]} 17... Bxf3 {[%clk 0:02:21.3]} 18. gxf3
{[%clk 0:02:09.3]} 18... Nb6 {[%clk 0:02:12.6]} 19. Kg2 {[%clk 0:01:47.5]} 19...
Nd5 {[%clk 0:01:22.7]} 20. Bc4 {[%clk 0:01:41.7]} 20... Nxe3+ {[%clk 0:01:12.4]}
21. fxe3 {[%clk 0:01:42]} 21... Qg5+ {[%clk 0:01:11.6]} 22. Kf2 {[%clk
0:01:35.4]} 22... Re7 {[%clk 0:00:32]} 23. Bd5 {[%clk 0:01:24.6]} 23... Rae8
{[%clk 0:00:28.5]} 24. Rc3 {[%clk 0:01:17.6]} 24... h5 {[%clk 0:00:21.3]} 25.
Rg1 {[%clk 0:01:08.4]} 25... Qh4+ {[%clk 0:00:21.5]} 26. Ke2 {[%clk 0:01:07.3]}
26... Qxh3 {[%clk 0:00:21]} 27. Rf1 {[%clk 0:00:55.5]} 27... Bf4 {[%clk
0:00:20.3]} 28. e4 {[%clk 0:00:50.9]} 28... Bg3 {[%clk 0:00:20.5]} 29. Re3
{[%clk 0:00:50.3]} 29... Bf4 {[%clk 0:00:20.8]} 30. Rc3 {[%clk 0:00:49.3]} 30...
f5 {[%clk 0:00:21.8]} 31. Rf2 {[%clk 0:00:44.6]} 31... Bg3 {[%clk 0:00:21.8]}
32. Bxf7+ {[%clk 0:00:34.6]} 32... Rxf7 {[%clk 0:00:22.2]} 33. Rc7 {[%clk
0:00:35.6]} 33... Rf8 {[%clk 0:00:19.2]} 34. Rxf7 {[%clk 0:00:33.7]} 34... Rxf7
{[%clk 0:00:19.8]} 35. Rf1 {[%clk 0:00:34.5]} 35... Qg2+ {[%clk 0:00:20]} 36.
Kd3 {[%clk 0:00:33.5]} 36... Qxf1+ {[%clk 0:00:20.6]} 37. Kc3 {[%clk 0:00:34.7]}
37... Qe1+ {[%clk 0:00:18]} 38. Kc4 {[%clk 0:00:35.2]} 38... Qe2+ {[%clk
0:00:17.8]} 39. Kd5 {[%clk 0:00:35.7]} 39... Qb5+ {[%clk 0:00:18.3]} 40. Qxb5
{[%clk 0:00:35.8]} 40... axb5 {[%clk 0:00:19.5]} 41. e5 {[%clk 0:00:36.1]} 41...
Kf8 {[%clk 0:00:18.7]} 42. e6 {[%clk 0:00:36.7]} 42... Re7 {[%clk 0:00:19.8]}
43. b4 {[%clk 0:00:36.3]} 43... Rxe6 {[%clk 0:00:19.8]} 44. Kxe6 {[%clk
0:00:36.7]} 44... h4 {[%clk 0:00:21]} 45. Kxf5 {[%clk 0:00:37.1]} 45... h3
{[%clk 0:00:22.1]} 46. d5 {[%clk 0:00:37.7]} 46... h2 {[%clk 0:00:23.2]} 47. d6
{[%clk 0:00:38.8]} 47... Bxd6 {[%clk 0:00:24.1]} 48. Ke6 {[%clk 0:00:39.3]}
48... h1=Q {[%clk 0:00:24.3]} 49. Kxd6 {[%clk 0:00:41.2]} 49... Qd1+ {[%clk
0:00:24.9]} 50. Kc7 {[%clk 0:00:41.6]} 50... Qd5 {[%clk 0:00:25.7]} 51. Kb6
{[%clk 0:00:42]} 51... Qc6+ {[%clk 0:00:26.3]} 52. Ka7 {[%clk 0:00:43.2]} 52...
Qa6+ {[%clk 0:00:27]} 53. Kb8 {[%clk 0:00:43.7]} 53... Ke7 {[%clk 0:00:28.1]}
54. f4 {[%clk 0:00:44.9]} 54... Kd7 {[%clk 0:00:29]} 55. f5 {[%clk 0:00:46.1]}
55... Qd6+ {[%clk 0:00:29.7]} 56. Ka8 {[%clk 0:00:46]} 56... Kc8 {[%clk
0:00:29.9]} 57. f6 {[%clk 0:00:46.5]} 57... Qa6# {[%clk 0:00:30.7]} 0-1

[Event "*** Titled Tuesday Blitz"]
[Site "Chess.com"]
[Date "2019.12.03"]
[Round "10"]
[White "Quiet_Desperation"]
[Black "2165149677570"]
[Result "0-1"]
[WhiteElo "2468"]
[BlackElo "2372"]
[TimeControl "180+2"]
[EndTime "15:19:55 PST"]
[Termination "2165149677570 won by resignation"]

1. e4 {[%clk 0:03:01.9]} 1... g6 {[%clk 0:02:59]} 2. d4 {[%clk 0:03:02.4]} 2...
Nf6 {[%clk 0:03:00.4]} 3. Nc3 {[%clk 0:03:02.6]} 3... d5 {[%clk 0:03:01.5]} 4.
Nf3 {[%clk 0:03:02.7]} 4... Nxe4 {[%clk 0:02:54.7]} 5. Nxe4 {[%clk 0:03:04.6]}
5... dxe4 {[%clk 0:02:56.5]} 6. Ng5 {[%clk 0:02:58.1]} 6... Bg7 {[%clk
0:02:56.6]} 7. c3 {[%clk 0:02:56.3]} 7... O-O {[%clk 0:02:36.8]} 8. Nxe4 {[%clk
0:02:55.9]} 8... e5 {[%clk 0:02:38.7]} 9. d5 {[%clk 0:02:50]} 9... h6 {[%clk
0:02:25.9]} 10. Be2 {[%clk 0:02:46.9]} 10... f5 {[%clk 0:02:26]} 11. Ng3 {[%clk
0:02:47.5]} 11... b6 {[%clk 0:01:58.2]} 12. O-O {[%clk 0:02:44.5]} 12... Nd7
{[%clk 0:01:58.2]} 13. d6 {[%clk 0:02:39.2]} 13... Nc5 {[%clk 0:01:55.7]} 14. b4
{[%clk 0:02:33]} 14... Ne6 {[%clk 0:01:56.3]} 15. dxc7 {[%clk 0:02:15.9]} 15...
Qxc7 {[%clk 0:01:55.2]} 16. Qb3 {[%clk 0:02:15.2]} 16... Kh7 {[%clk 0:01:54.3]}
17. Bc4 {[%clk 0:02:12.1]} 17... Nf4 {[%clk 0:01:54.9]} 18. Bxf4 {[%clk
0:02:09.5]} 18... exf4 {[%clk 0:01:56.8]} 19. Ne2 {[%clk 0:02:08.7]} 19... f3
{[%clk 0:01:38.4]} 20. gxf3 {[%clk 0:02:08.5]} 20... Bb7 {[%clk 0:01:40]} 21.
Bd5 {[%clk 0:02:04.1]} 21... Rad8 {[%clk 0:01:41.2]} 22. Bxb7 {[%clk 0:02:04.9]}
22... Qxb7 {[%clk 0:01:43.1]} 23. Nd4 {[%clk 0:01:53.8]} 23... Bxd4 {[%clk
0:01:36.6]} 24. cxd4 {[%clk 0:01:54.7]} 24... Rxd4 {[%clk 0:01:38.5]} 25. Rac1
{[%clk 0:01:41.2]} 25... Rfd8 {[%clk 0:01:32.9]} 26. Qe6 {[%clk 0:01:37.8]}
26... R8d7 {[%clk 0:01:08.7]} 27. Rc3 {[%clk 0:01:26.6]} 27... Qd5 {[%clk
0:00:41.1]} 28. Qf6 {[%clk 0:01:15.3]} 28... Qd6 {[%clk 0:00:25]} 29. Qxd6
{[%clk 0:01:03.9]} 29... R4xd6 {[%clk 0:00:15.4]} 30. Kg2 {[%clk 0:01:03.3]}
30... Rd4 {[%clk 0:00:10.4]} 31. a3 {[%clk 0:01:01.6]} 31... h5 {[%clk
0:00:09.8]} 32. Re1 {[%clk 0:01:00.8]} 32... Kh6 {[%clk 0:00:10.3]} 33. Re6
{[%clk 0:01:00]} 33... R4d6 {[%clk 0:00:12]} 34. Re8 {[%clk 0:01:00.9]} 34...
Kg5 {[%clk 0:00:12.6]} 35. Rc4 {[%clk 0:00:57.9]} 35... Rd4 {[%clk 0:00:09.4]}
36. Rc6 {[%clk 0:00:57.2]} 36... R4d6 {[%clk 0:00:09.6]} 37. Rc4 {[%clk
0:00:57]} 37... Rd4 {[%clk 0:00:10.9]} 38. Rxd4 {[%clk 0:00:42.6]} 38... Rxd4
{[%clk 0:00:12.8]} 39. Re7 {[%clk 0:00:43.9]} 39... a5 {[%clk 0:00:13.9]} 40.
bxa5 {[%clk 0:00:43.3]} 40... bxa5 {[%clk 0:00:15.8]} 41. Ra7 {[%clk 0:00:44.4]}
41... Ra4 {[%clk 0:00:17.3]} 42. Ra6 {[%clk 0:00:37.7]} 42... Rxa3 {[%clk
0:00:17.8]} 43. Kg3 {[%clk 0:00:37.6]} 43... h4+ {[%clk 0:00:18.1]} 44. Kg2
{[%clk 0:00:38.5]} 44... Ra1 {[%clk 0:00:14.3]} 45. f4+ {[%clk 0:00:38.5]} 45...
Kxf4 {[%clk 0:00:15.2]} 46. Rxg6 {[%clk 0:00:39.6]} 46... a4 {[%clk 0:00:16.2]}
47. Ra6 {[%clk 0:00:36.7]} 47... a3 {[%clk 0:00:17.3]} 48. Kh3 {[%clk
0:00:38.1]} 48... Kg5 {[%clk 0:00:14]} 49. f4+ {[%clk 0:00:36.6]} 49... Kxf4
{[%clk 0:00:14.7]} 50. Kxh4 {[%clk 0:00:37]} 50... Ke4 {[%clk 0:00:10.8]} 51.
Kg5 {[%clk 0:00:33.9]} 51... a2 {[%clk 0:00:11.1]} 52. Kf6 {[%clk 0:00:33.3]}
52... f4 {[%clk 0:00:11.8]} 53. h4 {[%clk 0:00:33.5]} 53... f3 {[%clk
0:00:12.8]} 54. h5 {[%clk 0:00:34.9]} 54... f2 {[%clk 0:00:13.8]} 55. Ra4+
{[%clk 0:00:33.2]} 55... Ke3 {[%clk 0:00:11.4]} 56. Ra3+ {[%clk 0:00:33.5]}
56... Ke2 {[%clk 0:00:12.8]} 0-1